{"text_format":"3","workbook":"xlsx","n_sheets":1,"sheets":["IŠLAIDŲ ATASKAITA"],"not_rendered":{"defined_names":4},"read":"whole","date_system":"1900"}

{"sheet":"IŠLAIDŲ ATASKAITA","index":0,"n_rows":22,"n_cols":12,"rows_kept":22,"merged":[[1,2,1,3],[1,5,1,6],[3,2,3,3],[3,6,3,7],[3,10,3,11],[4,2,4,3],[4,6,4,7],[4,10,4,11],[20,2,20,4],[20,6,20,8],[21,2,21,4],[21,6,21,8]]}
[null,"IŠLAIDŲ ATASKAITA",{"$nulls":8},"Naudojimui tik biure"]
[null,"TIKSLAS:",null,null,"ATASKAITOS NUMERIS:",null,null,"MOKĖJIMO LAIKOTARPIS","NUO:",{"$f":"IF(COUNTA(ExpenseData[Data])=0,\"\",MIN(ExpenseData[Data]))","v":""},"IKI:",{"$f":"IF(COUNTA(ExpenseData[Data])=0,\"\",MAX(ExpenseData[Data]))","v":""}]
[null,"DARBUOTOJO INFORMACIJA:"]
[null,"VARDAS",{"$nulls":3},"PAREIGOS",{"$nulls":3},"SOCIALINIO DRAUDIMO NUMERIS"]
[null,"SKYRIUS",{"$nulls":3},"VADOVAS",{"$nulls":3},"DARBUOTOJO ID"]
[]
[null,"Data","Paskyra","Aprašas","Viešbutis","Transportas","Degalai","Maitinimas","Telefonas","Pramogos","Įvairūs","Iš viso"]
[{"$nulls":11},{"$f":"SUM(ExpenseData[[#This Row],[Viešbutis]:[Įvairūs]])","v":{"v":0,"d":"0.00 EUR"}}]
[{"$nulls":11},{"$f":"SUM(ExpenseData[[#This Row],[Viešbutis]:[Įvairūs]])","v":{"v":0,"d":"0.00 EUR"}}]
[{"$nulls":11},{"$f":"SUM(ExpenseData[[#This Row],[Viešbutis]:[Įvairūs]])","v":{"v":0,"d":"0.00 EUR"}}]
[{"$nulls":11},{"$f":"SUM(ExpenseData[[#This Row],[Viešbutis]:[Įvairūs]])","v":{"v":0,"d":"0.00 EUR"}}]
[{"$nulls":11},{"$f":"SUM(ExpenseData[[#This Row],[Viešbutis]:[Įvairūs]])","v":{"v":0,"d":"0.00 EUR"}}]
[{"$nulls":11},{"$f":"SUM(ExpenseData[[#This Row],[Viešbutis]:[Įvairūs]])","v":{"v":0,"d":"0.00 EUR"}}]
[{"$nulls":11},{"$f":"SUM(ExpenseData[[#This Row],[Viešbutis]:[Įvairūs]])","v":{"v":0,"d":"0.00 EUR"}}]
[{"$nulls":11},{"$f":"SUM(ExpenseData[[#This Row],[Viešbutis]:[Įvairūs]])","v":{"v":0,"d":"0.00 EUR"}}]
[{"$nulls":11},{"$f":"SUM(ExpenseData[[#This Row],[Viešbutis]:[Įvairūs]])","v":{"v":0,"d":"0.00 EUR"}}]
[{"$nulls":11},{"$f":"SUM(ExpenseData[[#This Row],[Viešbutis]:[Įvairūs]])","v":{"v":0,"d":"0.00 EUR"}}]
[{"$nulls":11},{"$f":"SUM(ExpenseData[[#This Row],[Viešbutis]:[Įvairūs]])","v":{"v":0,"d":"0.00 EUR"}}]
[null,"Iš viso",null,null,{"$f":"SUBTOTAL(109,ExpenseData[Viešbutis])","v":{"v":0,"d":"0.00 EUR"}},{"$f":"SUBTOTAL(109,ExpenseData[Transportas])","v":{"v":0,"d":"0.00 EUR"}},{"$f":"SUBTOTAL(109,ExpenseData[Degalai])","v":{"v":0,"d":"0.00 EUR"}},{"$f":"SUBTOTAL(109,ExpenseData[Maitinimas])","v":{"v":0,"d":"0.00 EUR"}},{"$f":"SUBTOTAL(109,ExpenseData[Telefonas])","v":{"v":0,"d":"0.00 EUR"}},{"$f":"SUBTOTAL(109,ExpenseData[Pramogos])","v":{"v":0,"d":"0.00 EUR"}},{"$f":"SUBTOTAL(109,ExpenseData[Įvairūs])","v":{"v":0,"d":"0.00 EUR"}},{"$f":"SUBTOTAL(109,ExpenseData[Iš viso])","v":{"v":0,"d":"0.00 EUR"}}]
[{"$nulls":10},"TARPINĖ SUMA",{"$f":"ExpenseData[[#Totals],[Iš viso]]","v":{"v":0,"d":"0.00 EUR"}}]
[null,"PATVIRTINTA:",{"$nulls":3},"PASTABOS: ",{"$nulls":4},"AVANSAI",{"v":0,"d":"0.00 EUR"}]
[{"$nulls":10},"IŠ VISO",{"$f":"Tarpinė_suma-Avansai","v":{"v":0,"d":"0.00 EUR"}}]